lending/lending_fUSD_20240111
["ID","MTS","AMOUNT","RATE_DAILY","PERIOD"]
[311190269,1704976299815,-500.0,0.00040547,4]
[311190270,1704976299825,-500.0,0.00040547,4]
[311190271,1704976299834,-500.0,0.00040547,4]
[311190272,1704976299843,-252.12,0.00040547,4]
[311190273,1704976299852,-310.31700839,0.00040547,4]
[311190274,1704976299862,-500.0,0.00040547,4]
[311190275,1704976299871,-513.51024243,0.00040547,4]
[311190276,1704976299881,-500.0,0.00040547,4]
[311190277,1704976299890,-500.0,0.00040547,4]
[311190278,1704976299900,-500.0,0.00040547,4]
[311190279,1704976299909,-500.0,0.00040547,10]
[311190280,1704976299919,-302.36,0.00040547,4]
[311190281,1704976299928,-500.0,0.00040547,4]
[311190282,1704976299937,-500.0,0.00040547,4]
[311190283,1704976299947,-500.0,0.00040547,4]
[311190284,1704976299956,-500.0,0.00040547,4]
[311190285,1704976299965,-500.21,0.00040547,4]
[311190286,1704976299977,-500.0,0.00040547,4]
[311190287,1704976299987,-469.73,0.00040547,4]
[311190288,1704976299996,-500.0,0.00040547,4]
[311190289,1704976300006,-170.39,0.00040547,4]
[311190290,1704976300016,-500.0,0.00040547,4]
[311190291,1704976300025,-500.0,0.00040547,4]
[311190292,1704976300036,-500.0,0.00040547,4]
[311190293,1704976300045,-500.0,0.00040547,4]
[311190294,1704976300055,-184.58,0.00040547,4]
[311190295,1704976300065,-157.4,0.00040547,4]
[311190296,1704976300074,-500.0,0.00040547,4]
[311190297,1704976300085,-500.0,0.00040547,4]
[311190298,1704976300094,-500.0,0.00040547,4]
[311190299,1704976300104,-500.0,0.00040547,4]
[311190300,1704976300113,-500.0,0.00040547,4]
[311190301,1704976300123,-500.0,0.00040547,4]
[311190302,1704976300132,-520.68,0.00040547,4]
[311190303,1704976300142,-500.0,0.00040547,4]
[311190304,1704976300151,-300.48,0.00040547,4]
[311190305,1704976300161,-500.0,0.00040547,4]
[311190306,1704976300170,-500.0,0.00040547,4]
[311190307,1704976300180,-500.0,0.00040547,4]
[311190308,1704976300189,-500.0,0.00040547,4]
[311190309,1704976300199,-500.0,0.00040547,4]
[311190310,1704976300208,-500.0,0.00040547,4]
[311190311,1704976300218,-282.96,0.00040547,4]
[311190312,1704976300230,-407.21404149,0.00040547,4]
[311190313,1704976300240,-640.66,0.00040547,4]
[311190314,1704976300250,-599.0,0.00040547,4]
[311190315,1704976300259,-388.82,0.00040547,4]
[311190316,1704976300269,-500.0,0.00040547,4]
[311190317,1704976300279,-570.88,0.00040547,4]
[311190318,1704976300289,-500.0,0.00040547,4]
[311190319,1704976300299,-349.99027181,0.00040547,4]
[311190320,1704976300327,-500.0,0.00039726,4]
[311190321,1704976300337,-500.0,0.0004,4]
[311190322,1704976300347,-150.00972819,0.00040547,4]
[311190323,1704976300357,-500.0,0.00040547,4]
[311190324,1704976300367,-500.0,0.00040547,4]
[311190325,1704976300376,-491.0,0.00040547,4]
[311190326,1704976300387,-500.0,0.00040547,4]
[311190327,1704976300397,-500.0,0.00040547,4]
[311190328,1704976300407,-500.0,0.00040547,4]
[311190329,1704976300416,-500.0,0.00040547,4]
[311190330,1704976300426,-500.0,0.00040547,4]
[311190331,1704976300436,-500.0,0.00040547,4]
[311190332,1704976300446,-500.0,0.00040547,4]
[311190333,1704976300457,-500.0,0.00040547,4]
[311190334,1704976300467,-360.81,0.00040547,4]
[311190335,1704976300477,-540.71,0.00040547,4]
[311190336,1704976300487,-500.0,0.00040547,4]
[311190337,1704976300497,-579.0,0.00040547,4]
[311190338,1704976300507,-500.0,0.00040547,4]
[311190339,1704976300518,-500.0,0.00040547,4]
[311190340,1704976300528,-500.0,0.00040547,4]
[311190341,1704976300538,-500.0,0.00040547,4]
[311190342,1704976300550,-500.0,0.00040547,4]
[311190343,1704976300560,-500.0,0.00040547,4]
[311190344,1704976300570,-500.0,0.00040547,4]
[311190345,1704976300580,-500.0,0.00040547,4]
[311190346,1704976300591,-500.0,0.00040547,4]
[311190347,1704976300602,-500.0,0.00040547,4]
[311190348,1704976300612,-500.0,0.00040547,4]
[311190349,1704976300622,-500.0,0.00040547,4]
[311190350,1704976300633,-500.0,0.00040547,4]
[311190351,1704976300644,-473.6670807,0.00040547,4]
[311190352,1704976300712,-26.3329193,0.00040547,4]
[311190353,1704976300723,-500.0,0.00040547,4]
[311190354,1704976300739,-500.0,0.00040547,4]
[311190355,1704976300752,-500.0,0.00040547,4]
[311190356,1704976300765,-500.0,0.00040547,4]
[311190357,1704976300776,-274.38798757,0.00040547,4]
[311190358,1704976300791,-225.61201243,0.00040547,4]
[311190359,1704976300802,-33.95611594,0.00040547,4]
[311190360,1704976301199,-1831.2223096,0.00031994,2]
[311190361,1704976301210,-500.0,0.00039452,4]
[311190362,1704976301219,-500.0,0.00039726,4]
[311190363,1704976301233,-500.0,0.0004,4]
[311190364,1704976301243,-1009.20090617,0.0004,4]
[311190365,1704976301258,-1403.47909383,0.0004,4]
[311190366,1704976301267,-500.0,0.0004,4]
[311190367,1704976301279,-500.0,0.00040273,4]
[311190368,1704976301288,-500.0,0.00040273,4]
[311190369,1704976301298,-21.93213771,0.00040273,4]
[311190370,1704976301312,-2230.62108208,0.00040273,4]
[311190371,1704976301327,-160.12678021,0.00040273,4]
[311190372,1704976301337,-1116.0,0.00040421,30]
[311190373,1704976301348,-187.96388406,0.00040547,4]
[311190374,1704976301357,-500.0,0.00040547,4]
[311190375,1704976301367,-500.0,0.00040547,4]
[311190376,1704976301377,-500.0,0.00040547,4]
[311190377,1704976301387,-276.39,0.00040547,4]
[311190378,1704976301397,-482.20767694,0.00040547,4]
[311190379,1704976302035,-560.0,0.00033646,2]
[311190380,1704976302061,-1271.22230958,0.00033646,2]
[311190381,1704976302071,-1831.22230958,0.00035297,2]
[311190382,1704976302082,-153.75869328,0.00037204,11]
[311190383,1704976302092,-158.76484475,0.00038854,2]
[311190384,1704976302102,-191.96207289,0.00039068,2]
[311190385,1704976302112,-7643.38,0.00039178,4]
[311190386,1704976302122,-500.0,0.00039178,4]
[311190387,1704976302131,-7643.38,0.00039452,4]
[311190388,1704976302140,-7643.38,0.00039726,4]
[311190389,1704976302149,-7643.38,0.0004,4]
[311190390,1704976302158,-7643.38,0.00040273,4]
[311190391,1704976302168,-17.79232306,0.00040547,4]
[311190392,1704976302177,-500.0,0.00040547,4]
[311190393,1704976302186,-500.0,0.00040547,4]
[311190394,1704976302196,-500.0,0.00040547,4]
[311190395,1704976302205,-500.0,0.00040547,4]
[311190396,1704976302215,-500.0,0.00040547,4]
[311190397,1704976302224,-478.46,0.00040547,4]
[311190398,1704976302235,-500.0,0.00040547,4]
[311190399,1704976302245,-168.13,0.00040547,4]
[311190400,1704976302254,-500.0,0.00040547,4]
[311190401,1704976302263,-500.0,0.00040547,4]
[311190402,1704976302273,-29.13863386,0.00040547,4]
[311190403,1704976302285,-470.86136614,0.00040547,4]
[311190404,1704976302294,-500.0,0.00040547,4]
[311190405,1704976302303,-500.0,0.00040547,4]
[311190406,1704976302312,-500.0,0.00040547,4]
[311190407,1704976302322,-270.22669116,0.00040547,4]
[311190408,1704976302350,-1081.37197056,0.00037835,2]
[311190409,1704976302359,-500.0,0.00039452,4]
[311190410,1704976302369,-229.77330884,0.00040547,4]
[311190411,1704976302378,-337.07,0.00040547,4]
[311190412,1704976302387,-500.0,0.00040547,4]
[311190413,1704976302397,-645.13,0.00040547,4]
[311190414,1704976302406,-187.22,0.00040547,4]
[311190415,1704976302415,-169.12,0.00040547,4]
[311190416,1704976302425,-500.0,0.00040547,4]
[311190417,1704976302434,-252.76,0.00040547,4]
[311190418,1704976302445,-500.0,0.00040547,4]
[311190419,1704976302455,-500.0,0.00040547,4]
[311190420,1704976302465,-490.0663456,0.00040547,4]
[311190421,1704976302482,-9.9336544,0.00040547,4]
[311190422,1704976302491,-500.0,0.00040547,4]
[311190423,1704976302501,-500.0,0.00040547,4]
[311190424,1704976302511,-500.0,0.00040547,4]
[311190425,1704976302521,-500.0,0.00040547,4]
[311190426,1704976302530,-485.48,0.00040547,4]
[311190427,1704976302540,-500.0,0.00040547,4]
[311190428,1704976302550,-500.0,0.00040547,4]
[311190429,1704976302559,-500.0,0.00040547,4]
[311190430,1704976302569,-500.0,0.00040547,4]
[311190431,1704976302579,-500.0,0.00040547,4]
[311190432,1704976302588,-500.0,0.00040547,4]
[311190433,1704976302597,-500.0,0.00040547,4]
[311190434,1704976302606,-30.49124879,0.00040547,2]
[311190435,1704976302619,-469.50875121,0.00040547,2]
[311190436,1704976302628,-500.0,0.00040547,4]
[311190437,1704976302637,-500.0,0.00040547,4]
[311190438,1704976302647,-500.0,0.00040547,4]
[311190439,1704976302656,-500.0,0.00040547,4]
[311190440,1704976302665,-500.0,0.00040547,4]
[311190441,1704976302674,-500.0,0.00040547,4]
[311190442,1704976302683,-500.0,0.00040547,4]
[311190443,1704976302693,-500.0,0.00040547,4]
[311190444,1704976302702,-229.84,0.00040547,4]
[311190445,1704976302714,-500.0,0.00040547,4]
[311190446,1704976302723,-211.4514272,0.00040547,4]
[311190447,1704976302737,-288.5485728,0.00040547,4]
[311190448,1704976302749,-500.0,0.00040547,4]
[311190449,1704976302758,-383.81655487,0.00040547,4]
[311190450,1704976302771,-116.18344513,0.00040547,4]
[311190451,1704976302780,-500.0,0.00040547,7]
[311190452,1704976302790,-143.81575549,0.00040547,4]
[311190453,1704976302804,-356.18424451,0.00040547,4]
[311190454,1704976302814,-500.0,0.00040547,4]
[311190455,1704976302824,-500.0,0.00040547,4]
[311190456,1704976302833,-500.0,0.00040547,4]
[311190457,1704976302842,-470.24,0.00040547,4]
[311190458,1704976302851,-500.0,0.00040547,4]
[311190459,1704976302861,-500.0,0.00040547,4]
[311190460,1704976302870,-314.15904715,0.00040547,4]
[311190461,1704976302879,-500.0,0.00040547,4]
[311190462,1704976302889,-500.0,0.00040547,4]
[311190463,1704976302898,-500.0,0.00040547,4]
[311190464,1704976302907,-500.0,0.00040547,4]
[311190465,1704976302916,-500.0,0.00040547,4]
[311190466,1704976302925,-500.0,0.00040547,4]
[311190467,1704976302934,-500.0,0.00040547,4]
[311190468,1704976302945,-500.0,0.00040547,4]
[311190469,1704976302955,-500.0,0.00040547,4]
[311190470,1704976302964,-500.0,0.00040547,4]
[311190471,1704976302973,-500.0,0.00040547,4]
[311190472,1704976302984,-500.0,0.00040547,4]
[311190473,1704976302993,-394.72,0.00040547,4]
[311190474,1704976303002,-500.0,0.00040547,4]
[311190475,1704976303011,-500.0,0.00040547,4]
[311190476,1704976303021,-500.0,0.00040547,4]
[311190477,1704976303031,-500.0,0.00040547,4]
[311190478,1704976303039,-500.0,0.00040547,4]
[311190479,1704976303049,-500.0,0.00040547,4]
[311190480,1704976303057,-500.0,0.00040547,4]
[311190481,1704976303067,-500.0,0.00040547,4]
[311190482,1704976303076,-335.41,0.00040547,4]
[311190483,1704976303086,-506.72,0.00040547,4]
[311190484,1704976303095,-194.88,0.00040547,4]
[311190485,1704976303104,-500.0,0.00040547,4]
[311190486,1704976303113,-500.0,0.00040547,4]
[311190487,1704976303122,-500.0,0.00040547,4]
[311190488,1704976303132,-500.0,0.00040547,4]
[311190489,1704976303141,-500.0,0.00040547,4]
[311190490,1704976303151,-500.0,0.00040547,4]
[311190491,1704976303161,-500.0,0.00040547,4]
[311190492,1704976303171,-500.0,0.00040547,4]
[311190493,1704976303181,-435.76,0.00040547,4]
[311190494,1704976303192,-500.0,0.00040547,4]
[311190495,1704976303202,-500.0,0.00040547,4]
[311190496,1704976303211,-500.0,0.00040547,4]
[311190497,1704976303221,-500.0,0.00040547,4]
[311190498,1704976303234,-500.0,0.00040547,4]
[311190499,1704976303244,-500.0,0.00040547,4]
[311190500,1704976303256,-500.0,0.00040547,4]
[311190501,1704976303267,-565.1,0.00040547,4]
[311190502,1704976303489,-500.0,0.00040547,4]
[311190503,1704976303502,-500.0,0.00040547,4]
[311190504,1704976303514,-500.0,0.00040547,4]
[311190505,1704976303526,-500.0,0.00040547,4]
[311190506,1704976303539,-500.0,0.00040547,4]
[311190507,1704976303551,-500.0,0.00040547,4]
[311190508,1704976303563,-500.0,0.00040547,4]
[311190509,1704976303575,-500.0,0.00040547,4]
[311190510,1704976303586,-431.08,0.00040547,4]
[311190511,1704976303598,-500.0,0.00040547,4]
[311190512,1704976303609,-500.0,0.00040547,4]
[311190513,1704976303620,-500.0,0.00040547,4]
[311190514,1704976303632,-487.97629422,0.00040547,4]
[311190515,1704976303647,-12.02370578,0.00040547,4]
[311190516,1704976303659,-384.6,0.00040547,4]
[311190517,1704976303670,-500.0,0.00040547,4]
[311190518,1704976303682,-500.0,0.00040547,4]
[311190519,1704976303695,-500.0,0.00040547,4]
[311190520,1704976303720,-500.0,0.00040547,4]
[311190521,1704976303734,-500.0,0.00040547,4]
[311190522,1704976303745,-500.0,0.00040547,4]
[311190523,1704976303756,-500.0,0.00040547,4]
[311190524,1704976303767,-500.0,0.00040547,4]
[311190525,1704976303779,-500.0,0.00040547,4]
[311190526,1704976303790,-500.0,0.00040547,4]
[311190527,1704976303801,-500.0,0.00040547,4]
[311190528,1704976303812,-500.0,0.00040547,4]
[311190529,1704976303823,-500.0,0.00040547,4]
[311190530,1704976303834,-400.58,0.00040547,4]
[311190531,1704976303845,-500.0,0.00040547,4]
[311190532,1704976303855,-500.0,0.00040547,4]
[311190533,1704976303866,-500.0,0.00040547,4]
[311190534,1704976303878,-500.0,0.00040547,4]
[311190535,1704976303888,-500.0,0.00040547,4]
[311190536,1704976303900,-500.0,0.00040547,4]
[311190537,1704976303910,-500.0,0.00040547,4]
[311190538,1704976303920,-500.0,0.00040547,4]
[311190539,1704976303931,-500.0,0.00040547,4]
[311190540,1704976303941,-500.0,0.00040547,4]
[311190541,1704976303952,-500.0,0.00040547,4]
[311190542,1704976303963,-500.0,0.00040547,4]
[311190543,1704976303973,-500.0,0.00040547,4]
[311190544,1704976303988,-500.0,0.00040547,4]
[311190545,1704976303999,-157.13,0.00040547,4]
[311190546,1704976304010,-500.0,0.00040547,4]
[311190547,1704976304020,-500.0,0.00040547,4]
[311190548,1704976304031,-500.0,0.00040547,4]
[311190549,1704976304042,-500.0,0.00040547,4]
[311190550,1704976304053,-500.0,0.00040547,4]
[311190551,1704976304063,-500.0,0.00040547,4]
[311190552,1704976304074,-198.8,0.00040547,4]
[311190553,1704976304084,-500.0,0.00040547,4]
[311190554,1704976304095,-500.0,0.00040547,4]
[311190555,1704976304111,-500.0,0.00040547,4]
[311190556,1704976304122,-500.0,0.00040547,4]
[311190557,1704976304132,-500.0,0.00040547,4]
[311190558,1704976304142,-500.0,0.00040547,4]
[311190559,1704976304153,-500.0,0.00040547,4]
[311190560,1704976304163,-623.04,0.00040547,4]
[311190561,1704976304173,-500.0,0.00040547,4]
[311190562,1704976304184,-500.0,0.00040547,4]
[311190563,1704976304195,-500.0,0.00040547,4]
[311190564,1704976304205,-566.63,0.00040547,4]
[311190565,1704976304215,-500.0,0.00040547,4]
[311190566,1704976304225,-500.0,0.00040547,4]
[311190567,1704976304238,-500.0,0.00040547,4]
[311190568,1704976304250,-500.0,0.00040547,4]
[311190569,1704976304260,-322.05203317,0.00040547,2]
[311190570,1704976304271,-500.0,0.00040547,4]
[311190571,1704976304282,-500.0,0.00040547,4]
[311190572,1704976304292,-500.0,0.00040547,4]
[311190573,1704976304302,-500.0,0.00040547,4]
[311190574,1704976304316,-353.9,0.00040547,4]
[311190575,1704976304326,-500.0,0.00040547,4]
[311190576,1704976304337,-500.0,0.00040547,4]
[311190577,1704976304347,-394.25,0.00040547,4]
[311190578,1704976304357,-500.0,0.00040547,4]
[311190579,1704976304368,-500.0,0.00040547,4]
[311190580,1704976304378,-500.0,0.00040547,4]
[311190581,1704976304389,-274.17484541,0.00040547,4]
[311190582,1704976304401,-500.0,0.00040547,4]
[311190583,1704976304411,-500.0,0.00040547,4]
[311190584,1704976304423,-500.0,0.00040547,4]
[311190585,1704976304433,-500.0,0.00040547,4]
[311190586,1704976304444,-500.0,0.00040547,4]
[311190587,1704976304454,-500.0,0.00040547,4]
[311190588,1704976304465,-500.0,0.00040547,4]
[311190589,1704976304639,-570.16,0.00040547,4]
[311190590,1704976304650,-2269.43,0.00040547,4]
[311190591,1704976304662,-617.38,0.00040547,4]
[311190592,1704976304672,-626.43,0.00040547,4]
[311190593,1704976304683,-500.0,0.00040547,4]
[311190594,1704976304694,-500.0,0.00040547,4]
[311190595,1704976304705,-500.0,0.00040547,4]
[311190596,1704976304720,-500.0,0.00040547,4]
[311190597,1704976304735,-500.0,0.00040547,4]
[311190598,1704976304746,-614.43,0.00040547,4]
[311190599,1704976304759,-500.0,0.00040547,4]
[311190600,1704976304770,-500.0,0.00040547,4]
[311190601,1704976304781,-500.0,0.00040547,4]
[311190602,1704976304792,-500.0,0.00040547,4]
[311190603,1704976304803,-500.0,0.00040547,4]
[311190604,1704976304814,-500.0,0.00040547,4]
[311190605,1704976304825,-500.0,0.00040547,4]
[311190606,1704976304838,-500.0,0.00040547,4]
[311190607,1704976304850,-486.38,0.00040547,4]
[311190608,1704976304861,-500.0,0.00040547,4]
[311190609,1704976304872,-500.0,0.00040547,4]
[311190610,1704976304884,-500.0,0.00040547,4]
[311190611,1704976304895,-500.0,0.00040547,4]
[311190612,1704976304906,-500.0,0.00040547,4]
[311190613,1704976304916,-835.14,0.00040547,4]
[311190614,1704976304927,-500.0,0.00040547,4]
[311190615,1704976304939,-500.0,0.00040547,4]
[311190616,1704976304950,-576.25,0.00040547,4]
[311190617,1704976304961,-500.0,0.00040547,4]
[311190618,1704976304972,-279.23541835,0.00040547,4]
[311190619,1704976304992,-220.76458165,0.00040547,4]
[311190620,1704976305002,-500.0,0.00040547,4]
[311190621,1704976305013,-331.99,0.00040547,4]
[311190622,1704976305023,-500.0,0.00040547,4]
[311190623,1704976305034,-500.0,0.00040547,4]
[311190624,1704976305044,-500.0,0.00040547,4]
[311190625,1704976305055,-1146.18,0.00040547,4]
[311190626,1704976305070,-500.0,0.00040547,4]
[311190627,1704976305082,-468.68764247,0.00040547,4]
[311190628,1704976305097,-31.31235753,0.00040547,4]
[311190629,1704976305108,-500.0,0.00040547,4]
[311190630,1704976305120,-500.0,0.00040547,4]
[311190631,1704976305132,-500.0,0.00040547,4]
[311190632,1704976305143,-500.0,0.00040547,4]
[311190633,1704976305154,-500.0,0.00040547,4]
[311190634,1704976305165,-500.0,0.00040547,4]
[311190635,1704976305175,-534.9,0.00040547,4]
[311190636,1704976305187,-500.0,0.00040547,4]
[311190637,1704976305198,-642.16,0.00040547,4]
[311190638,1704976305209,-775.91,0.00040547,4]
[311190639,1704976305220,-10763.91,0.00040547,4]
[311190640,1704976305235,-500.0,0.00040547,4]
[311190641,1704976305245,-500.0,0.00040547,4]
[311190642,1704976305256,-500.0,0.00040547,4]
[311190643,1704976305266,-500.0,0.00040547,4]
[311190644,1704976305275,-500.0,0.00040547,4]
[311190645,1704976305285,-392.8,0.00040547,4]
[311190646,1704976305295,-500.0,0.00040547,4]
[311190647,1704976305306,-500.0,0.00040547,4]
[311190648,1704976305315,-435.13749889,0.00040547,4]
[311190649,1704976305325,-500.0,0.00040547,4]
[311190650,1704976305335,-500.0,0.00040547,4]
[311190651,1704976305345,-527.34,0.00040547,4]
[311190652,1704976305356,-500.0,0.00040547,4]
[311190653,1704976305366,-500.0,0.00040547,4]
[311190654,1704976305377,-500.0,0.00040547,4]
[311190655,1704976305387,-500.0,0.00040547,4]
[311190656,1704976305397,-500.0,0.00040547,4]
[311190657,1704976305407,-669.89,0.00040547,4]
[311190658,1704976305417,-1318.87,0.00040547,4]
[311190659,1704976305426,-500.0,0.00040547,4]
[311190660,1704976305436,-500.0,0.00040547,4]
[311190661,1704976305447,-500.0,0.00040547,4]
[311190662,1704976305456,-150.48,0.00040547,4]
[311190663,1704976305466,-500.0,0.00040547,4]
[311190664,1704976305476,-2838.19,0.00040547,4]
[311190665,1704976305487,-500.0,0.00040547,4]
[311190666,1704976305497,-500.0,0.00040547,4]
[311190667,1704976305507,-3866.26,0.00040547,4]
[311190668,1704976305517,-500.0,0.00040547,4]
[311190669,1704976305526,-500.0,0.00040547,4]
[311190670,1704976305535,-1706.31,0.00040547,4]
[311190671,1704976305546,-419.7702581,0.00040547,4]
[311190672,1704976305555,-500.0,0.00040547,4]
[311190673,1704976305565,-500.0,0.00040547,4]
[311190674,1704976305577,-686.13,0.00040547,4]
[311190675,1704976305586,-500.0,0.00040547,4]
[311190676,1704976305596,-653.27,0.00040547,4]
[311190677,1704976305605,-500.0,0.00040547,4]
[311190678,1704976305615,-500.0,0.00040547,4]
[311190679,1704976305624,-500.0,0.00040547,4]
[311190680,1704976305634,-500.0,0.00040547,4]
[311190681,1704976305644,-798.93,0.00040547,4]
[311190682,1704976305654,-500.0,0.00040547,4]
[311190683,1704976305664,-203.78844861,0.00040547,4]
[311190684,1704976305674,-500.0,0.00040547,4]
[311190685,1704976305683,-495.72,0.00040547,4]
[311190686,1704976305692,-500.0,0.00040547,4]
[311190687,1704976305702,-500.0,0.00040547,4]
[311190688,1704976305712,-651.34,0.00040547,4]
[311190689,1704976305721,-513.0,0.00040547,4]
[311190690,1704976305734,-267.2,0.00040547,4]
[311190691,1704976305744,-500.0,0.00040547,4]
[311190692,1704976305754,-500.0,0.00040547,4]
[311190693,1704976305763,-500.0,0.00040547,4]
[311190694,1704976305773,-500.0,0.00040547,4]
[311190695,1704976305783,-500.0,0.00040547,4]
[311190696,1704976305792,-1274.51,0.00040547,4]
[311190697,1704976305802,-1040.51,0.00040547,4]
[311190698,1704976305811,-500.0,0.00040547,4]
[311190699,1704976305821,-500.0,0.00040547,4]
[311190700,1704976305831,-500.0,0.00040547,4]
[311190701,1704976305841,-500.0,0.00040547,4]
[311190702,1704976305851,-500.0,0.00040547,4]
[311190703,1704976305860,-830.69,0.00040547,4]
[311190704,1704976305871,-500.0,0.00040547,4]
[311190705,1704976305881,-500.0,0.00040547,4]
[311190706,1704976305890,-500.0,0.00040547,4]
[311190707,1704976305901,-500.0,0.00040547,4]
[311190708,1704976305911,-500.0,0.00040547,4]
[311190709,1704976305921,-500.0,0.00040547,4]
[311190710,1704976305931,-500.0,0.00040547,4]
[311190711,1704976305941,-500.0,0.00040547,4]
[311190712,1704976305950,-500.0,0.00040547,4]
[311190713,1704976305959,-617.96,0.00040547,4]
[311190714,1704976305969,-500.0,0.00040547,4]
[311190715,1704976305978,-500.0,0.00040547,4]
[311190716,1704976305987,-500.0,0.00040547,4]
[311190717,1704976305997,-500.0,0.00040547,4]
[311190718,1704976306006,-500.0,0.00040547,4]
[311190719,1704976306016,-500.0,0.00040547,4]
[311190720,1704976306025,-1381.12,0.00040547,4]
[311190721,1704976306034,-615.18,0.00040547,4]
[311190722,1704976306044,-500.0,0.00040547,4]
[311190723,1704976306053,-500.0,0.00040547,4]
[311190724,1704976306062,-2350.74,0.00040547,4]
[311190725,1704976306071,-296.6,0.00040547,4]
[311190726,1704976306081,-1299.5,0.00040547,4]
[311190727,1704976306091,-500.0,0.00040547,4]
[311190728,1704976306101,-500.0,0.00040547,4]
[311190729,1704976306110,-500.0,0.00040547,4]
[311190730,1704976306120,-741.46,0.00040547,4]
[311190731,1704976306129,-500.0,0.00040547,4]
[311190732,1704976306139,-500.0,0.00040547,4]
[311190733,1704976306149,-500.0,0.00040547,4]
[311190734,1704976306160,-2199.27,0.00040547,4]
[311190735,1704976306170,-500.0,0.00040547,4]
[311190736,1704976306179,-758.86,0.00040547,4]
[311190737,1704976306189,-1445.54,0.00040547,4]
[311190738,1704976306198,-500.0,0.00040547,4]
[311190739,1704976306208,-500.0,0.00040547,4]
[311190740,1704976306217,-500.0,0.00040547,4]
[311190741,1704976306228,-500.0,0.00040547,4]
[311190742,1704976306237,-500.0,0.00040547,4]
[311190743,1704976306247,-972.63,0.00040547,4]
[311190744,1704976306256,-500.0,0.00040547,4]
[311190745,1704976306265,-500.0,0.00040547,4]
[311190746,1704976306274,-262.08736822,0.00040547,4]
[311190747,1704976306283,-832.06,0.00040547,4]
[311190748,1704976306293,-1716.58,0.00040547,4]
[311190749,1704976306303,-664.52,0.00040547,4]
[311190750,1704976306312,-500.0,0.00040547,4]
[311190751,1704976306321,-500.0,0.00040547,4]
[311190752,1704976306331,-776.44,0.00040547,4]
[311190753,1704976306341,-500.0,0.00040547,4]
[311190754,1704976306350,-500.0,0.00040547,4]
[311190755,1704976306360,-500.0,0.00040547,4]
[311190756,1704976306369,-225.53,0.00040547,4]
[311190757,1704976306378,-767.24,0.00040547,4]
[311190758,1704976306389,-648.46,0.00040547,4]
[311190759,1704976306399,-500.0,0.00040547,5]
[311190760,1704976306409,-500.0,0.00040547,4]
[311190761,1704976306418,-500.0,0.00040547,4]
[311190762,1704976306428,-500.0,0.00040547,4]
[311190763,1704976306437,-612.71,0.00040547,4]
[311190764,1704976306449,-500.0,0.00040547,4]
[311190765,1704976306458,-500.0,0.00040547,4]
[311190766,1704976306467,-500.0,0.00040547,4]
[311190767,1704976306478,-537.38,0.00040547,4]
[311190768,1704976306488,-516.56,0.00040547,4]